Cogmind - Beta 13 @@@ ROGUE MODE // 2024.04.11 @ 16:32:49 Player: gabr Result: Destroyed by G-47 Trooper with Particle Gun Performance ------------- Evolutions (2) 1000 Regions Visited (4) 800 Robots Destroyed (16) 80 Value Destroyed (330) 330 Prototype IDs (0) 0 Alien Tech Used (0) 0 Bonus (0) 0 TOTAL SCORE: 2210 Bonus ------- None Cogmind --------- Core Integrity 0/550 Matter 288/300 Energy 14/100 System Corruption 0% Temperature Cool (27) Movement Core (200) Ox3 Location -8/Materials Parts ------- > --- POWER (1) -------- (None) > --- PROPULSION (4) --- (None) > --- UTILITY (4) ------ Medium Storage Unit > --- WEAPON (2) ------- Blade Saw > --- INVENTORY (10) --- Improved Ion Engine Medium Storage Unit High-capacity Matter Pod (127) Improved Datajack Peak State ------------ > --- POWER ------------ Light Nuclear Core > --- PROPULSION ------- Hover Unit Hover Unit Hover Unit Hover Unit > --- UTILITY ---------- Improved Heat Sink Small Storage Unit Weapon Shielding Shield Generator > --- WEAPON ----------- Pulse Rifle Pulse Rifle > --- INVENTORY -------- Light Ion Engine Improved Ion Engine High-capacity Matter Pod Weight Redist. System Particle Gun Pulse Rifle Light Assault Rifle Improved Datajack [Rating: 21] Favorites ----------- Power Light Nuclear Core Engine Ion Engine Power Core Light Nuclear Core Propulsion Hover Unit Leg Aluminum Leg Wheel Wheel Hover Unit Hover Unit Flight Unit VTOL Module Utility Shield Generator Device Shield Generator Storage Small Storage Unit Protection Weapon Shielding Weapon Light Assault Rifle Energy Gun Particle Gun Ballistic Gun Light Assault Rifle Slashing Weapon Blade Saw Build | -11 -10 -9 -9 -8 ------- Run | Yrd Mat Mat Min Mat Slots Evolved 4 | . . 2 . 2 Power . | . . . . . Propulsion 2 | . . 2 . . Utility 2 | . . . . 2 Weapon . | . . . . . Parts Attached 34 | 6 11 2 . 15 Power 6 | 1 1 . . 4 Engine 4 | 1 . . . 3 Core 2 | . 1 . . 1 Reactor . | . . . . . Propulsion 10 | 2 6 2 . . Treads . | . . . . . Leg 2 | 2 . . . . Wheel 2 | . 2 . . . Hover 4 | . 2 2 . . Flight 2 | . 2 . . . Utility 8 | 1 3 . . 4 Device 5 | . 3 . . 2 Storage 2 | 1 . . . 1 Processor . | . . . . . Hackware . | . . . . . Protection 1 | . . . . 1 Artifact . | . . . . . Weapon 10 | 2 1 . . 7 Energy Gun 6 | 1 1 . . 4 Energy Cannon . | . . . . . Ballistic Gun 3 | 1 . . . 2 Ballistic Cannon . | . . . . . Launcher . | . . . . . Special Weapon . | . . . . . Impact Weapon . | . . . . . Slashing Weapon 1 | . . . . 1 Piercing Weapon . | . . . . . Special Melee Weapon . | . . . . . Unidentified Prototypes . | . . . . . Parts Lost 13 | . . . . 13 Power 2 | . . . . 2 Propulsion 4 | . . . . 4 Utility 3 | . . . . 3 Weapon 4 | . . . . 4 Highest Loss Streak 13 | . . . . 13 To Critical Strikes . | . . . . . Average Slot Usage (%) 91 | . 98 100 100 75 Engine 4 | . 7 . . . Core 6 | . 6 11 11 5 Leg 1 | . 2 . . . Wheel 5 | . 9 . . . Hover 16 | . 7 44 44 26 Flight 5 | . 8 . . . Device 12 | . 13 11 11 11 Storage 12 | . 14 11 11 9 Protection 2 | . . . . 6 Energy Gun 13 | . 14 11 11 12 Ballistic Gun 9 | . 14 11 11 2 Naked Turns . | . . . . . Heaviest Build 25 | 12 16 16 16 25 Greatest Support 24 | 20 20 24 24 24 Greatest Overweight (x) 5 | . 5 . . 1 Average Overweight (x) . | . . . . . Largest Inventory Capacity 10 | 8 8 8 8 10 Average Capacity 8 | 7 8 8 8 9 Most Carried 9 | 6 8 7 7 9 Average Carried 7 | 3 7 6 6 7 Final Capacity 10 | 8 8 8 8 10 Final Carried 8 | 6 8 6 7 4 Class Distribution -------------------- 81% | Mutant 18% | Scavenger-Mutant Dominant Class ---------------- Mutant | -10/Materials Mutant | -9/Materials Mutant | -9/Mines Scavenger-Mutant | -8/Materials Resources | -11 -10 -9 -9 -8 ----------- Run | Yrd Mat Mat Min Mat Matter Collected 640 | 190 201 . 171 78 Remotely . | . . . . . Salvage Created 513 | . 359 . 49 105 Parts 45 | . 27 . 5 13 Haulers Intercepted 1 | . 1 . . . Recyclers Shooed 4 | . 1 . 2 1 Parts Field Recycled . | . . . . . Retrieved Matter . | . . . . . Parts Self-Destructed . | . . . . . Prevented . | . . . . . Kills | -11 -10 -9 -9 -8 ------- Run | Yrd Mat Mat Min Mat Combat Hostiles Destroyed 11 | . 4 . 3 4 Guns 11 | . 4 . 3 4 Classes Destroyed 8 | . 6 . 1 1 Worker 1 | . 1 . . . Builder 1 | . 1 . . . Hauler 1 | . 1 . . . Recycler 1 | . 1 . . . Watcher 1 | . 1 . . . Swarmer 3 | . . . 3 . Cutter 3 | . . . . 3 Grunt 5 | . 4 . . 1 Best Kill Streak 3 | . 3 . 3 3 Combat Bots Only 3 | . 2 . 3 3 Max Kills in Single Turn 1 | . 1 . 1 1 Gunslinging . | . . . . . Exploded . | . . . . . Melee . | . . . . . Uniques/NPCs Destroyed . | . . . . . Combat | -11 -10 -9 -9 -8 -------- Run | Yrd Mat Mat Min Mat Hostile Shots Fired 132 | . 27 . 9 96 Missed 26 | . 8 . 1 17 Damage Taken 1581 | . 189 . 45 1347 Core 603 | . 49 . 4 550 Absorbed by Shields 107 | . 72 . 20 15 Redirected to Shielding 40 | . . . . 40 Regen/Repaired (Parts) 19 | . 19 . . . Core Remaining (%) 93 | 100 80 . 99 . Volleys Fired 60 | . 30 . 8 22 Largest 2 | . 2 . 2 2 Hottest 126 | . 85 . 85 126 Shots Fired 103 | . 58 . 16 29 Gun 103 | . 58 . 16 29 Cannon . | . . . . . Launcher . | . . . . . Special . | . . . . . Kinetic 48 | . 29 . 8 11 Thermal 55 | . 29 . 8 18 Explosive . | . . . . . Electromagnetic . | . . . . . Robot Hit Streak 16 | . 16 . 4 5 Robot Miss Streak 10 | . 2 . 3 10 Penetration Max . | . . . . . Secondary Targets 2 | . . . 2 . Max Gunslinging Chain 1 | . . . 1 . Shots Hit Robots 64 | . 40 . 10 14 Core Hits 28 | . 15 . 5 8 Critical Kills . | . . . . . Critical Parts Destroyed . | . . . . . Critical Strikes . | . . . . . Melee Attacks 1 | . . . . 1 Impact . | . . . . . Slashing 1 | . . . . 1 Piercing . | . . . . . Sneak Attacks . | . . . . . Combat Hostiles . | . . . . . Follow-up Attacks . | . . . . . Damage Inflicted 778 | . 454 . 110 214 Guns 761 | . 454 . 110 197 Cannons . | . . . . . Explosions . | . . . . . Melee 16 | . . . . 16 Ramming 1 | . . . . 1 Kinetic 278 | . 188 . 37 53 Thermal 483 | . 266 . 73 144 Explosive . | . . . . . Electromagnetic . | . . . . . Impact . | . . . . . Slashing 16 | . . . . 16 Piercing . | . . . . . Highest Corruption 2 | . 2 . . . Average Corruption 2 | . 2 . . . Corruption Purged . | . . . . . Corruption Blocked . | . . . . . Effects 4 | . 4 . . . Message Errors 2 | . 2 . . . Matter Fused 1 | . 1 . . . Weapon Failures 1 | . 1 . . . Overload Shots . | . . . . . Overflow Damage . | . . . . . Projectiles . | . . . . . Explosions . | . . . . . Melee . | . . . . . Knockbacks . | . . . . . Impact . | . . . . . Kinetic . | . . . . . Secondary . | . . . . . Self-Inflicted Damage . | . . . . . Shots . | . . . . . Rammed 2 | . . . . 2 Targets Rammed 2 | . . . . 2 Kicked . | . . . . . Crushed . | . . . . . Highest Temperature 360 | . 360 . 230 79 Average Temperature 108 | . 122 . 130 32 Received Heat Transfer 502 | . 115 . . 387 Effects 4 | . 4 . . . Energy Bleed 1 | . 1 . . . Interference 3 | . 3 . . . Siege Activations . | . . . . . Robots Corrupted . | . . . . . Combat Hostiles . | . . . . . Parts Fried . | . . . . . Impact Corruptions . | . . . . . Robots Melted . | . . . . . Combat Hostiles . | . . . . . Parts Melted 2 | . 1 . . 1 Heat Transferred 1147 | . 629 . 185 333 Parts Sabotaged . | . . . . . Parts Stolen . | . . . . . Parts Stripped . | . . . . . Power Chain Reactions . | . . . . . Alert | -11 -10 -9 -9 -8 ------- Run | Yrd Mat Mat Min Mat Peak Influence 179 | . 179 . 85 88 Initial 33 | . . . . 33 Average 63 | . 87 . 70 40 Maximum Alert Level . | . . . . . Low Security (%) 100 | 100 100 100 100 100 Level 1 . | . . . . . Level 2 . | . . . . . Level 3 . | . . . . . Level 4 . | . . . . . Level 5 . | . . . . . High Security . | . . . . . Max Security . | . . . . . Squads Dispatched 3 | . . . . 3 Investigation 1 | . . . . 1 Extermination . | . . . . . Reinforcement 2 | . . . . 2 Assault . | . . . . . Garrison . | . . . . . Intercept . | . . . . . Searches Triggered . | . . . . . Construction Impeded . | . . . . . Haulers Reinforced . | . . . . . Active Scanning Responses . | . . . . . Cargo Convoy Interrupts . | . . . . . Stealth | -11 -10 -9 -9 -8 --------- Run | Yrd Mat Mat Min Mat Distress Signals 3 | . . . . 3 Communications Jammed . | . . . . . Distress Signals . | . . . . . Times Spotted 27 | . 7 . 3 17 Peak Tracking Total 10 | . 3 . 3 10 Tactical Retreats 1 | . . . . 1 Traps | -11 -10 -9 -9 -8 ------- Run | Yrd Mat Mat Min Mat Traps Triggered 1 | . 1 . . . Indirectly . | . . . . . Trap Hack Attempts . | . . . . . Triggered . | . . . . . Disarmed . | . . . . . Reprogrammed . | . . . . . Reused . | . . . . . Traps Extracted . | . . . . . Installed . | . . . . . Triggered . | . . . . . Machines | -11 -10 -9 -9 -8 ---------- Run | Yrd Mat Mat Min Mat Machines Disabled 1 | . . . 1 . Max in Single Turn 1 | . . . 1 . Machines Repaired . | . . . . . Machines Dismantled . | . . . . . Machines Sabotaged . | . . . . . Overloaded Fab Kills . | . . . . . Hacking | -11 -10 -9 -9 -8 --------- Run | Yrd Mat Mat Min Mat Machines Accessed 5 | . 4 . . 1 Terminals 3 | . 2 . . 1 Fabricators . | . . . . . Repair Stations 1 | . 1 . . . Recycling Units 1 | . 1 . . . Scanalyzers . | . . . . . Garrison Access . | . . . . . Total Hacks 10 | . 8 . . 2 Successful 3 | . 3 . . . Failed 7 | . 5 . . 2 Catastrophic 3 | . 2 . . 1 Database Lockouts . | . . . . . Manual 4 | . 2 . . 2 Terminals 5 | . 3 . . 2 Fabricators . | . . . . . Repair Stations 3 | . 3 . . . Recycling Units 2 | . 2 . . . Scanalyzers . | . . . . . Garrison Access . | . . . . . Terminal Hacks 1 | . 1 . . . Transport Status 1 | . 1 . . . Fabricator Hacks . | . . . . . Repair Station Hacks 2 | . 2 . . . Scan Component 1 | . 1 . . . Repair 1 | . 1 . . . Recycling Unit Hacks . | . . . . . Scanalyzer . | . . . . . Garrison Access Hacks . | . . . . . Unauthorized Hacks . | . . . . . Terminals . | . . . . . Fabricators . | . . . . . Repair Stations . | . . . . . Recycling Units . | . . . . . Scanalyzers . | . . . . . Garrison Access . | . . . . . Data Cores Recovered . | . . . . . Used . | . . . . . Hacking Detections 5 | . 4 . . 1 Full Trace Events 1 | . . . . 1 Feedback Events . | . . . . . Feedback Blocked . | . . . . . Robot Schematics Acquired . | . . . . . Robots Built . | . . . . . Authchips . | . . . . . Time . | . . . . . Total Robot Build Rating . | . . . . . Part Schematics Acquired . | . . . . . Parts Built . | . . . . . Authchips . | . . . . . Time . | . . . . . Total Part Build Rating . | . . . . . Parts Repaired 1 | . 1 . . . Time 38 | . 38 . . . Parts Recycled . | . . . . . Recycled Matter . | . . . . . Retrieved Matter . | . . . . . Retrieved Components . | . . . . . Parts Scanalyzed . | . . . . . Part Schematics Acquired . | . . . . . Parts Damaged . | . . . . . Bothacking | -11 -10 -9 -9 -8 ------------ Run | Yrd Mat Mat Min Mat Used RIF Installer . | . . . . . Robots Hacked . | . . . . . Non-combat . | . . . . . Combat . | . . . . . Robot Hacks Applied . | . . . . . Relay Couplers Released . | . . . . . Fabnet Peak Effective % . | . . . . . Robots Rewired . | . . . . . Allies Hacked . | . . . . . Hacks Repelled . | . . . . . Allies | -11 -10 -9 -9 -8 -------- Run | Yrd Mat Mat Min Mat Total Allies . | . . . . . Largest Group . | . . . . . Highest-Rated Group . | . . . . . Highest-Rated Ally . | . . . . . Total Orders . | . . . . . Ally Attacks . | . . . . . Total Damage . | . . . . . Kills . | . . . . . Allies Corrupted . | . . . . . Allies Melted . | . . . . . Intel | -11 -10 -9 -9 -8 ------- Run | Yrd Mat Mat Min Mat Robot Analysis Total . | . . . . . Derelict Logs Recovered . | . . . . . Drone Launches . | . . . . . Drone Recoveries . | . . . . . Exploration | -11 -10 -9 -9 -8 ------------- Run | Yrd Mat Mat Min Mat Turns Passed 779 | 75 418 6 48 232 Spaces Moved 515 | 55 255 8 50 147 Core 11 | 8 1 . . 2 Treads . | . . . . . Legs 70 | 47 23 . . . Wheels 112 | . 112 . . . Hover 250 | . 47 8 50 145 Flight 72 | . 72 . . . Fastest Speed 48 | 50 80 48 48 48 Average Speed 89 | 109 101 48 48 76 Slowest Speed 300 | 120 300 48 48 108 Overloaded Moves . | . . . . . Propulsion Burnouts . | . . . . . Robots Hopped . | . . . . . Cave-ins Triggered . | . . . . . Exploration Rate (%) 14 | 5 39 2 14 13 Regions Visited 4 Branch Regions 1 Pre-discovered Areas . | . . . . . Known Exits Taken . | . . . . . Unknown Exits Taken 4 | 1 1 1 1 . Scrap Searched 1 | . . . 1 . Spaces Dug . | . . . . . Terrain Destroyed . | . . . . . Melee . | . . . . . Projectile . | . . . . . AOE . | . . . . . Terrain Rammed . | . . . . . Walls Destroyed . | . . . . . Machines Disabled . | . . . . . Actions | -11 -10 -9 -9 -8 --------- Run | Yrd Mat Mat Min Mat Total 736 | 66 365 9 59 237 Wait 84 | . 42 . 1 41 Move 511 | 54 254 7 49 147 Hop . | . . . . . Pick Up 23 | 6 11 . 1 5 Fast Attach 18 | 6 8 . . 4 Attach 11 | . 1 2 . 8 Detach 1 | . . . . 1 Swap 5 | . 2 . . 3 Drop 20 | . 17 . . 3 Fire 60 | . 30 . 8 22 Melee 1 | . . . . 1 Ram 2 | . . . . 2 Kick . | . . . . . Crush . | . . . . . Escape Stasis . | . . . . . Rewire . | . . . . . Trap . | . . . . . Miscellaneous . | . . . . . Route ------- -11/Scrapyard -10/Materials (discovered 2 exits: [*Mat] / [*Min]) -9/Materials -9/Mines -8/Materials History --------- Turn | Location | Event 7 | -11/Scrapyard | Discovered new exit (range 15) 76 | -11/Scrapyard | Entered Materials 325 | -10/Materials | Build established: Mutant 328 | -10/Materials | Discovered new exit (range 12) 376 | -10/Materials | Discovered new exit (range 13) 463 | -10/Materials | Repaired Imp. Heat Sink 494 | -10/Materials | Entered another Materials area 494 | -9/Materials | Evolved 2 slots: Propulsion x2 496 | -9/Materials | Discovered new exit (range 8) 500 | -9/Materials | Entered Mines 538 | -9/Mines | Discovered new exit (range 8) 548 | -9/Mines | Entered Materials 548 | -8/Materials | Evolved 2 slots: Utility x2 753 | -8/Materials | Core integrity fell below 50% 775 | -8/Materials | Core integrity fell below 20% 780 | -8/Materials | Destroyed by G-47 Trooper with Particle Gun Last Messages --------------- 00738_ C-17 Slicer destroyed. 00739_ Particle Gun severed. 00740_ Acquired Lgt. Assault Rifle. 00747_ C-17 Slicer destroyed. 00748_ Acquired 23 matter. 00748_ R-06 Scavenger collects Surge Thruster. 00749_ Slammed into G-47 Trooper. 00751_ Lgt. Assault Rifle broken. 00751_ Destabilizing: Short circuit. 00751_ R-06 Scavenger collects Surge Thruster. 00754_ R-06 Scavenger collects Concussive RPG. 00755_ M-13 Machinist repairs G-47 Trooper. 00759_ G-47 Trooper destroyed. 00760_ Acquired 55 matter. 00760_ Broken Lgt. Assault Rifle destroyed. 00766_ M-13 Machinist repairs G-47 Trooper. 00767_ W-25 Informer sends out distress signal. 00774_ Weight Redist. System destroyed. 00775_ Pulse Rifle destroyed. 00776_ Acquired Blade Saw. Map ----- +----------------------------------------------------+ | ?????????????????????????????????????????????????? | | ?????????????????????????????????????????????????? | | ?????????????????????T ?????????????????????????? | | ????????????????????? ????????????????????????? | | ????????????????????? ????????????????????????? | | ???????????????????? ????????????????????????? | | ????????????????????# #????????????????????????? | | ????????????????????# #????????????????????????? | | ????????????????????# #????????????????????????? | | ????????????????????# #????????????????????????? | | ????????????????????# #????????????????????????? | | ????????????????????# #????????????????????????? | | ???????? ########### #????????????????????????? | | ??????? #????????????????????????? | | ??????? #????????????????????????? | | ?????? #????????????????????????? | | ?????? ##???????????????????????? | | ?????? % ##???????????????????????? | | ?????????????######## ##???????????????????????? | | ???????????????????## ##???????????????????????? | | ???????????????????## ########?????????????????? | | ????????????????????# !#== #?????????????????? | | ???????????????????## [#!g #?????????????????? | | ???????????????????## =%/ggY #?????????????????? | | ???????????????????## =*#gg #?????????????????? | | ????????????????????# #@ #?????????????????? | | ????????????????????# # #?????????????????? | | ????????????????????# ########?????????????????? | | ?????????????######## # #?????????????????? | | ?????????????# # # #?????????????????? | | ?????????????# # # """ #?????????????????? | | ?????????????# # #! """ #?????????????????? | | ?????????????# # # """ #?????????????????? | | ?????????????# + + #?????????????????? | | ?????????????# # ########?????????????????? | | ?????????????######## #????????????????????????? | | ????????????????##! #????????????????????????? | | ????????????????# #????????????????????????? | | ????????????????#! +????????????????????????? | | ????????????????#! #????????????????????????? | | ????????????????#! #????????????????????????? | | ????????????????##! ##########???????????????? | | ?????????????????#### ## #???????????????? | | ????????????????????# ## #???????????????? | | ????????????????????# ## ?????????????????? | | ???????????????????## ## ???????????????????? | | ???????????????????# ##+#########+##?????????? | | ???????????????????# ???????? | | ???????????????????# ???????? | | ???????????????????# ???????? | +----------------------------------------------------+ Best States ------------- Heat Dissipation 45 Energy Generation 14 Energy Capacity 250 Matter Stores 300 Matter Capacity 300 Sight Range 16 Terrain Scan Density 10 Additional Mass Support 6 Weapon Shielding 33 Evasion (%) 55 Item Schematics ----------------- None Robot Schematics ------------------ None Fabricated ------------ Nothing Alien Tech Used ----------------- None Achievements -------------- None Challenges ------------ None Game ------ Seed ThermicGunMicrothruster Manual? 0 Play Time 00:12:49 Cumulative 84.0 hours Start 2024.04.11 @ 16:23:31 End 2024.04.11 @ 16:32:49 Sessions 1 Manual Loads 0 Difficulty Rogue Special Mode None Game No. 175 Rogue 175 Adventurer 0 Explorer 0 Win Type - Total 0 Types 0/0/0/0/0/0/0/0/0 Lore% 29 Gallery% 45 Achievement% 32 Wizard Run 0 Options --------- Layout 0 ASCII 0 Keyboard 1 Movement Numpad Keybinds 0 Fullscreen 1 Font 24/Terminus Map View 76x50 Zoom Use 0% Tactical HUD 1 Map Filters NONE Filters NONE Steam 1 RUN: ba1a42cb-ed3a-43b3-8c33-3ef48729396f